bitfinex/quotes_SOLUSD_20220113
["timestamp","ask_amount","ask_price","bid_price","bid_amount"]
[1642043522889,22.2752,148.79,148.66,2.689]
[1642043523086,22.2752,148.79,148.69,10.0856]
[1642043523288,19.5862,148.79,148.69,10.0856]
[1642043523888,19.8362,148.79,148.69,10.0856]
[1642043524087,22.5252,148.79,148.69,10.0856]
[1642043524988,9.5,148.79,148.69,10.0856]
[1642043525188,2.689,148.83,148.7,0.26]
[1642043525392,9.5,148.86,148.74,10.0819]
[1642043525590,8.688,148.85,148.74,10.0819]
[1642043525989,27.69194589,148.84,148.74,10.0819]
[1642043526189,37.77444589,148.84,148.74,10.0819]
[1642043526790,47.52444589,148.84,148.72,125.5599]
[1642043526990,2.688,148.83,148.73,6.0]
[1642043527189,2.938,148.83,148.72,122.8729]
[1642043527393,10.0847,148.81,148.69,79.9177]
[1642043527590,12.189,148.8,148.69,79.9177]
[1642043527791,1.70107338,148.79,148.66,10.0871]
[1642043527990,12.189,148.78,148.65,26.24825335]
[1642043528191,12.439,148.78,148.63,281.0992]
[1642043528491,12.439,148.78,148.63,278.4102]
[1642043529093,12.439,148.78,148.64,30.35773937]
[1642043529294,22.5258,148.78,148.64,43.13583937]
[1642043529694,22.5258,148.78,148.65,0.26]
[1642043530096,22.5258,148.78,148.64,33.29673937]
[1642043530298,22.2758,148.78,148.64,33.29673937]
[1642043530497,22.2758,148.78,148.68,32.78705519]
[1642043530700,19.5868,148.78,148.68,33.03705519]
[1642043530899,19.5868,148.78,148.68,10.0863]
[1642043531299,19.5868,148.78,148.66,2.689]
[1642043531500,2.689,148.77,148.65,25.7513]
[1642043531701,19.5878,148.76,148.66,10.0872]
[1642043532001,47.09690809,148.76,148.66,10.0872]
[1642043532201,47.34690809,148.76,148.66,10.0872]
[1642043533603,2.689,148.75,148.64,2.689]
[1642043533805,10.0903,148.73,148.64,2.689]
[1642043534202,10.3403,148.73,148.64,2.689]
[1642043534803,0.25,148.73,148.64,12.7781]
[1642043535007,0.25,148.73,148.64,13.0281]
[1642043535206,15.5,148.75,148.64,13.0281]
[1642043535505,15.75,148.75,148.64,13.0281]
[1642043535907,15.75,148.75,148.64,79.9581]
[1642043536529,15.75,148.75,148.68,10.0863]
[1642043536729,15.5,148.75,148.68,10.3363]
[1642043536927,6.0,148.75,148.69,2.689]
[1642043537127,0.25,148.75,148.66,2.689]
[1642043537529,6.0,148.78,148.69,10.0853]
[1642043537727,6.25,148.78,148.69,10.3353]
[1642043537928,6.25,148.78,148.69,77.2653]
[1642043538427,37.12490883,148.81,148.7,27.52696314]
[1642043538627,34.43590883,148.81,148.72,10.0835]
[1642043538828,13.32017065,148.81,148.72,10.0835]
[1642043539127,9.5,148.81,148.72,10.3335]
[1642043539327,9.5,148.81,148.72,79.9515]
[1642043539527,3.82017065,148.83,148.73,0.26]
[1642043539728,4.07017065,148.83,148.76,10.0806]
[1642043539929,6.0,148.82,148.76,10.0806]
[1642043540132,0.25,148.82,148.76,10.0806]
[1642043541328,6.0,148.83,148.75,10.0817]
[1642043541329,6.25,148.83,148.75,10.0817]
[1642043541528,0.25,148.83,148.75,10.0817]
[1642043541727,2.688,148.84,148.75,10.0817]
[1642043541927,6.0,148.83,148.75,10.0817]
[1642043542527,6.25,148.83,148.75,10.0817]
[1642043543628,2.23075008,148.82,148.75,10.0817]
[1642043544029,2.48075008,148.82,148.75,10.0817]
[1642043544229,0.25,148.82,148.75,10.0817]
[1642043544636,0.25,148.82,148.78,10.0794]
[1642043544833,9.5,148.85,148.78,10.0794]
[1642043545637,9.5,148.85,148.73,27.1311]
[1642043545836,2.688,148.84,148.73,24.4441]
[1642043546037,9.5,148.83,148.7,75.6588]
[1642043546336,9.75,148.83,148.71,24.3965]
[1642043546536,5.72076308,148.82,148.71,24.3965]
[1642043546736,10.0851,148.8,148.71,24.3965]
[1642043546936,12.188,148.79,148.72,26.13746371]
[1642043547139,9.5,148.78,148.71,24.3965]
[1642043547339,9.5,148.78,148.7,75.6588]
[1642043547744,9.75,148.78,148.7,75.6588]
[1642043548144,9.75,148.78,148.71,10.0843]
[1642043548346,9.75,148.78,148.7,75.6588]
[1642043548544,12.439,148.78,148.7,75.6588]
[1642043550250,22.5252,148.78,148.7,75.6588]
[1642043550447,19.8362,148.78,148.7,75.6588]
[1642043551451,2.689,148.77,148.7,75.6588]
[1642043551648,10.0891,148.74,148.66,93.2]
[1642043551849,9.5,148.73,148.66,93.2]
[1642043552148,12.44,148.73,148.66,93.2]
[1642043552348,18.16076308,148.73,148.62,99.32625488]
[1642043552950,12.44,148.73,148.62,99.32625488]
[1642043553147,10.0911,148.71,148.62,109.41675488]
[1642043553348,19.5911,148.71,148.62,109.41675488]
[1642043553547,19.8411,148.71,148.62,109.41675488]
[1642043555748,19.8411,148.71,148.62,99.32625488]
[1642043556549,6.0,148.7,148.62,99.32625488]
[1642043556849,0.25,148.7,148.62,109.41665488]
[1642043557651,9.5,148.71,148.62,109.41665488]
[1642043558652,19.591,148.71,148.61,2.69]
[1642043558852,6.0,148.7,148.59,76.1655]
[1642043559052,9.5,148.69,148.59,76.1655]
[1642043559253,2.691,148.68,148.59,76.1655]
[1642043559654,2.941,148.68,148.59,101.97212523]
[1642043560461,0.25,148.68,148.59,99.28212523]
[1642043560659,45.44118774,148.69,148.59,99.28212523]
[1642043560860,42.75018774,148.69,148.59,99.28212523]
[1642043561661,19.8428,148.69,148.59,99.28212523]
[1642043561859,19.8428,148.69,148.59,109.37462523]
[1642043562060,19.8428,148.69,148.59,112.31562523]
[1642043562260,9.75,148.69,148.59,205.51562523]
[1642043563090,9.75,148.69,148.59,179.459]
[1642043563289,2.691,148.68,148.59,166.6755]
[1642043563488,9.5,148.67,148.59,166.6755]
[1642043563689,9.75,148.67,148.59,166.6755]
[1642043565388,19.8439,148.67,148.59,166.6755]
[1642043567993,19.8439,148.67,148.59,191.40179251]
[1642043572092,19.8439,148.67,148.59,166.6755]
[1642043572294,6.0,148.66,148.59,73.4755]
[1642043572495,10.0949,148.65,148.58,23.0536]
[1642043572693,19.8449,148.65,148.56,24.7246]
[1642043573396,19.8449,148.65,148.54,102.86947959]
[1642043573794,19.8449,148.65,148.54,100.95702723]
[1642043574193,19.8449,148.65,148.54,111.05292723]
[1642043574393,19.8449,148.65,148.54,100.95702723]
[1642043574793,2.691,148.64,148.54,75.9067]
[1642043574995,10.0984,148.6,148.54,2.691]
[1642043575195,10.3484,148.6,148.52,1.91245236]
[1642043575395,18.3134,148.6,148.52,1.91245236]
[1642043575594,18.3134,148.6,148.51,78.39945236]
[1642043575794,6.0,148.59,148.52,31.37779245]
[1642043575997,10.0995,148.58,148.52,31.37779245]
[1642043576195,10.3495,148.58,148.52,31.37779245]
[1642043576395,10.3495,148.58,148.49,107.71245236]
[1642043576596,10.3495,148.58,148.49,105.02045236]
[1642043577397,10.3495,148.58,148.5,28.66065179]
[1642043577597,10.3495,148.58,148.49,105.02045236]
[1642043577900,9.5,148.57,148.49,81.49855236]
[1642043578100,10.1021,148.54,148.49,1.91245236]
[1642043578297,16.5841,148.54,148.49,1.91245236]
[1642043578499,6.732,148.54,148.49,1.91245236]
[1642043578698,6.732,148.54,148.49,29.77531714]
[1642043579301,0.25,148.54,148.49,29.77531714]
[1642043579503,0.25,148.54,148.49,27.86286478]
[1642043579702,9.5,148.57,148.49,27.86286478]
[1642043580103,9.5,148.57,148.49,28.11286478]
[1642043580604,6.0,148.56,148.51,10.0974]
[1642043580805,6.0,148.56,148.52,26.19114542]
[1642043581006,19.5978,148.61,148.52,26.19114542]
[1642043581231,6.0,148.55,148.52,26.19114542]
[1642043581405,19.5978,148.61,148.52,26.19114542]
[1642043581706,9.5,148.61,148.53,2.692]
[1642043581903,9.5,148.66,148.53,2.952]
[1642043582104,9.5,148.66,148.53,26.2206]
[1642043582707,9.75,148.66,148.53,26.2206]
[1642043583005,16.0948,148.65,148.54,10.0955]
[1642043583206,19.0358,148.65,148.55,25.11947728]
[1642043585411,13.0358,148.65,148.55,35.21467728]
[1642043586407,13.0358,148.65,148.55,25.11947728]
[1642043587007,13.0358,148.65,148.53,27.62205236]
[1642043587208,13.0358,148.65,148.53,24.93105236]
[1642043587710,9.5,148.64,148.53,24.93105236]
[1642043588010,10.0963,148.63,148.53,58.39697455]
[1642043588209,10.3463,148.63,148.53,58.39697455]
[1642043588509,6.0,148.62,148.53,58.39697455]
[1642043588737,6.25,148.62,148.53,58.39697455]
[1642043588912,0.25,148.62,148.53,58.39697455]
[1642043590215,19.8452,148.64,148.53,58.64697455]
[1642043590418,9.75,148.64,148.54,0.26]
[1642043590621,9.75,148.64,148.55,10.095]
[1642043591323,9.75,148.64,148.56,29.08530744]
[1642043592319,19.8453,148.64,148.56,29.08530744]
[1642043594726,9.75,148.64,148.56,39.17980744]
[1642043596860,9.75,148.64,148.56,10.0945]
[1642043598571,19.8452,148.64,148.54,12.00785236]
[1642043598768,19.8452,148.64,148.54,1.91245236]
[1642043598971,6.0,148.63,148.54,1.91245236]
[1642043599169,12.192,148.62,148.54,1.91245236]
[1642043599570,12.442,148.62,148.54,1.91245236]
[1642043600000,12.442,148.62,148.53,2.692]
[1642043600204,10.0978,148.6,148.52,22.6764]
[1642043600400,9.5,148.59,148.52,22.6764]
[1642043600899,9.75,148.59,148.52,22.6764]
[1642043602600,9.75,148.59,148.52,32.7736]
[1642043602799,9.75,148.59,148.52,34.68605236]
[1642043603801,9.5,148.59,148.53,1.91245236]
[1642043604002,9.5,148.59,148.54,28.6894823]
[1642043604401,10.0963,148.62,148.54,28.6894823]
[1642043604603,10.3463,148.62,148.54,28.6894823]
[1642043604802,0.25,148.62,148.54,28.6894823]
[1642043605403,0.25,148.62,148.54,40.69783466]
[1642043605803,2.692,148.64,148.55,66.93]
[1642043606003,9.5,148.65,148.55,2.691]
[1642043606203,36.274,148.67,148.55,2.691]
[1642043606404,36.274,148.67,148.56,0.26]
[1642043607305,10.0936,148.66,148.57,27.87662316]
[1642043607704,10.3436,148.66,148.57,27.87662316]
[1642043607903,10.0936,148.66,148.57,27.87662316]
[1642043608309,46.3669,148.67,148.57,37.97022316]
[1642043608508,19.5929,148.67,148.57,37.97022316]
[1642043609108,19.5929,148.67,148.57,39.88267552]
[1642043609109,19.8429,148.67,148.57,39.88267552]
[1642043609312,19.8429,148.67,148.57,29.78907552]
[1642043609510,6.0,148.66,148.57,29.78907552]
[1642043609710,10.0947,148.65,148.57,1.91245236]
[1642043610110,10.3447,148.65,148.57,1.91245236]
[1642043611014,2.691,148.64,148.56,2.691]
[1642043611212,10.0981,148.6,148.56,2.691]
[1642043611612,12.192,148.59,148.56,2.691]
[1642043611816,6.06439994,148.58,148.53,1.91245236]
[1642043612013,12.192,148.57,148.53,1.91245236]
[1642043612214,12.442,148.57,148.53,1.91245236]
[1642043612612,9.75,148.57,148.53,1.91245236]
[1642043612814,9.75,148.57,148.49,33.55031034]
[1642043613016,6.0,148.56,148.49,33.55031034]
[1642043613214,6.25,148.56,148.49,33.55031034]
[1642043613414,16.3504,148.56,148.49,33.55031034]
[1642043613615,16.3504,148.56,148.49,1.91245236]
[1642043613816,16.3504,148.56,148.5,1.91245236]
[1642043614816,10.3504,148.56,148.49,1.91245236]
[1642043616519,6.0,148.55,148.49,1.91245236]
[1642043616722,16.3507,148.55,148.49,1.91245236]
[1642043617321,16.3507,148.55,148.48,1.91245236]
[1642043617725,10.3507,148.55,148.48,1.91245236]
[1642043618125,19.5998,148.57,148.48,12.26245236]
[1642043618327,19.8498,148.57,148.48,14.95545236]
[1642043618626,9.75,148.57,148.49,1.91245236]
[1642043619053,9.75,148.57,148.49,12.01115236]
[1642043619757,19.8494,148.57,148.5,1.91245236]
[1642043620554,6.0,148.56,148.5,1.91245236]
[1642043620753,6.25,148.56,148.5,1.91245236]
[1642043621158,6.25,148.56,148.49,1.91245236]
[1642043621755,6.25,148.56,148.5,27.33451295]
[1642043622157,10.1005,148.55,148.5,27.33451295]
[1642043622359,10.1005,148.55,148.49,1.91245236]
[1642043622557,10.3505,148.55,148.49,1.91245236]
[1642043623858,9.5,148.54,148.49,1.91245236]
[1642043624059,12.193,148.54,148.49,1.91245236]
[1642043624258,10.1033,148.52,148.49,1.91245236]
[1642043624458,6.06439994,148.51,148.49,1.91245236]
[1642043624658,6.31439994,148.51,148.46,2.01245236]
[1642043625660,25.92569994,148.51,148.46,2.01245236]
[1642043626460,35.42569994,148.51,148.46,2.01245236]
[1642043627264,35.42569994,148.51,148.46,0.1]
[1642043627565,6.0,148.5,148.46,0.1]
[1642043627762,10.1061,148.48,148.46,0.1]
[1642043627963,6.06439994,148.47,148.46,0.1]
[1642043628161,3.03219997,148.47,148.46,0.1]
[1642043628361,9.5,148.54,148.46,0.1]
[1642043629362,19.8517,148.54,148.46,0.1]
[1642043629562,6.0,148.53,148.46,0.1]
[1642043629762,15.75,148.53,148.46,0.1]
[1642043630170,1.68287441,148.52,148.46,0.1]
[1642043630365,12.193,148.51,148.46,0.1]
[1642043630768,9.5,148.51,148.46,0.1]
[1642043632269,19.6034,148.51,148.46,0.1]
[1642043632674,19.8534,148.51,148.46,0.1]
[1642043633470,19.6034,148.51,148.46,0.1]
[1642043634976,6.0,148.5,148.46,0.1]
[1642043635176,10.1049,148.48,148.46,0.1]
[1642043635374,6.06439994,148.47,148.46,0.1]
[1642043636979,16.1041,148.5,148.46,0.1]
[1642043637180,16.3541,148.5,148.46,0.1]
[1642043637715,6.25,148.5,148.46,0.1]
[1642043638312,6.0,148.5,148.46,0.1]
[1642043638913,9.5,148.55,148.46,0.1]
[1642043639313,9.75,148.55,148.46,0.1]
[1642043639514,9.5,148.55,148.46,0.1]
[1642043640317,10.102,148.53,148.46,0.1]
[1642043640714,10.352,148.53,148.46,0.1]
[1642043642423,6.0,148.52,148.46,0.1]
[1642043642619,16.1023,148.52,148.46,0.1]
[1642043642823,16.3523,148.52,148.46,0.1]
[1642043643822,16.1023,148.52,148.46,0.1]
[1642043645122,16.3523,148.52,148.46,0.1]
[1642043647429,25.8523,148.52,148.46,0.1]
[1642043647828,10.1054,148.49,148.46,0.1]
[1642043648026,6.06439994,148.48,148.46,0.1]
[1642043648226,6.31439994,148.48,148.46,0.1]
[1642043648827,16.41959994,148.48,148.46,0.1]
[1642043651830,16.16959994,148.48,148.46,0.1]
[1642043653038,6.0,148.47,148.46,0.1]
[1642043653233,16.1061,148.47,148.46,0.1]
[1642043653834,16.3561,148.47,148.46,0.1]
[1642043654235,10.3561,148.47,148.46,0.1]
[1642043657334,24.7671,148.47,148.46,0.1]
[1642043658138,27.4611,148.47,148.46,0.1]
[1642043658934,24.7671,148.47,148.46,0.1]
[1642043659136,16.3561,148.47,148.46,0.1]
[1642043659536,16.1061,148.47,148.46,0.1]
[1642043659738,6.06439994,148.48,148.46,0.1]
[1642043660136,3.03219997,148.48,148.46,0.1]
[1642043660337,9.5,148.53,148.46,0.1]
[1642043660540,6.0,148.52,148.46,0.1]
[1642043660742,9.5,148.53,148.46,0.1]
[1642043660952,10.1022,148.52,148.46,0.1]
[1642043661138,10.3522,148.52,148.46,0.1]
[1642043662140,6.0,148.51,148.46,0.1]
[1642043662340,10.1042,148.49,148.46,0.1]
[1642043662740,10.3542,148.49,148.46,0.1]
[1642043663773,3.03219997,148.48,148.46,0.1]
[1642043663943,3.03219997,148.47,148.46,0.1]
[1642043664548,3.28219997,148.47,148.46,0.1]
[1642043665547,13.38789997,148.47,148.46,0.1]
[1642043667849,3.03219997,148.48,148.46,0.1]
[1642043668452,9.5,148.52,148.46,0.1]
[1642043668651,6.0,148.51,148.46,0.1]
[1642043669250,16.3534,148.51,148.46,0.1]
[1642043669852,9.5,148.5,148.46,0.1]
[1642043670253,9.75,148.5,148.46,0.1]
[1642043671153,10.1051,148.48,148.46,0.1]
[1642043671578,3.03219997,148.47,148.46,0.1]
[1642043671781,9.75,148.5,148.46,0.1]
[1642043672278,19.8541,148.5,148.46,0.1]
[1642043673982,10.1075,148.48,148.42,1.91245236]
[1642043674180,12.194,148.47,148.42,0.41245236]
[1642043674380,13.87687441,148.47,148.41,0.41245236]
[1642043674581,14.12687441,148.47,148.41,0.41245236]
[1642043674781,12.444,148.47,148.41,0.41245236]
[1642043675587,12.444,148.47,148.38,3.75972459]
[1642043675782,12.444,148.47,148.37,31.72197507]
[1642043675983,12.444,148.47,148.37,2.01830072]
[1642043676187,10.1102,148.45,148.37,2.01830072]
[1642043676386,12.195,148.44,148.37,2.01830072]
[1642043676788,12.445,148.44,148.37,2.01830072]
[1642043676987,9.75,148.44,148.37,2.01830072]
[1642043677186,10.1088,148.43,148.37,2.01830072]
[1642043677687,10.3588,148.43,148.37,2.01830072]
[1642043678488,6.0,148.42,148.37,2.01830072]
[1642043678693,9.5,148.41,148.37,2.01830072]
[1642043678887,10.111,148.39,148.37,2.01830072]
[1642043679088,6.06439994,148.38,148.37,32.01830072]
[1642043679292,6.31439994,148.38,148.37,32.01830072]
[1642043681089,6.10643294,148.38,148.37,32.01830072]
[1642043681394,3.28219997,148.38,148.37,32.01830072]
[1642043682189,0.25,148.38,148.37,32.01830072]
[1642043682491,3.28219997,148.38,148.37,32.01830072]
[1642043682690,6.10643294,148.38,148.37,32.01830072]
[1642043684893,6.10643294,148.38,148.37,2.01830072]
[1642043685494,16.21813294,148.38,148.37,2.01830072]
[1642043686694,5.85643294,148.38,148.37,2.01830072]
[1642043687094,5.85643294,148.38,148.37,42.01830072]
[1642043687394,10.1108,148.4,148.37,42.01830072]
[1642043688193,3.03219997,148.39,148.37,42.01830072]
[1642043688395,3.03219997,148.39,148.37,42.22626772]
[1642043688594,3.28219997,148.39,148.37,42.22626772]
[1642043688998,0.25,148.39,148.37,2.22626772]
[1642043689596,3.03219997,148.38,148.37,2.01830072]
[1642043690096,3.03219997,148.38,148.37,26.01830072]
[1642043690298,10.3608,148.4,148.37,26.22626772]
[1642043690697,3.03219997,148.39,148.37,2.22626772]
[1642043690896,2.82423297,148.38,148.37,2.01830072]
[1642043691299,3.07423297,148.38,148.37,2.01830072]
[1642043691896,3.07423297,148.38,148.37,29.01830072]
[1642043692498,13.14329997,148.39,148.37,29.01830072]
[1642043692699,9.5,148.41,148.37,29.01830072]
[1642043694201,9.75,148.41,148.37,29.01830072]
[1642043694600,6.0,148.4,148.37,29.01830072]
[1642043694804,2.82423297,148.39,148.37,29.01830072]
[1642043695003,0.25,148.41,148.37,29.01830072]
[1642043696103,10.1094,148.42,148.38,38.0]
[1642043697403,10.3594,148.42,148.38,38.0]
[1642043698607,10.3594,148.42,148.37,2.01830072]
[1642043699609,16.11,148.41,148.37,2.01830072]
[1642043700007,16.36,148.41,148.37,2.01830072]
[1642043700608,25.86,148.41,148.37,2.01830072]
[1642043701710,19.86,148.41,148.37,2.01830072]
[1642043702510,19.61,148.41,148.37,2.01830072]
[1642043702909,19.86,148.41,148.37,2.01830072]
[1642043703310,10.1122,148.39,148.37,2.01830072]
[1642043703511,5.85643294,148.38,148.37,2.01830072]
[1642043703709,6.10643294,148.38,148.37,2.01830072]
[1642043705112,16.21883294,148.38,148.37,2.01830072]
[1642043707513,21.90683294,148.38,148.37,2.01830072]
[1642043707814,31.40683294,148.38,148.37,2.01830072]
[1642043708617,41.78470735,148.38,148.37,2.01830072]
[1642043710116,41.78470735,148.38,148.28,23.1138]
[1642043710318,2.696,148.37,148.27,24.1222]
[1642043710518,10.1166,148.32,148.27,24.1222]
[1642043710720,10.3666,148.32,148.27,24.1222]
[1642043711119,0.25,148.32,148.27,24.1222]
[1642043711920,2.947,148.35,148.27,24.1222]
[1642043712321,2.947,148.35,148.26,12.8099]
[1642043712548,2.947,148.35,148.26,2.695]
[1642043712949,9.5,148.34,148.26,2.695]
[1642043713149,9.75,148.34,148.26,2.695]
[1642043713949,6.0,148.33,148.26,2.695]
[1642043714150,28.5624,148.33,148.24,87.5553]
[1642043714552,25.8654,148.33,148.24,87.5553]
[1642043714752,25.6154,148.33,148.24,87.8053]
[1642043715861,25.6154,148.33,148.24,87.5553]
[1642043716354,25.6154,148.33,148.24,77.4391]
[1642043716756,25.8654,148.33,148.24,77.4391]
[1642043719058,19.8654,148.33,148.24,77.4391]
[1642043719559,9.75,148.33,148.24,87.5554]
[1642043719759,9.5,148.33,148.24,87.8054]
[1642043720160,9.75,148.33,148.24,87.5554]
[1642043721162,19.8655,148.33,148.24,87.5554]
[1642043721761,2.697,148.32,148.24,87.5554]
[1642043721960,12.197,148.32,148.24,87.5554]
[1642043722162,12.447,148.32,148.24,87.5554]
[1642043723061,9.75,148.32,148.24,84.8584]
[1642043723962,9.75,148.32,148.25,2.697]
[1642043724163,9.75,148.32,148.26,10.1149]
[1642043725766,9.5,148.32,148.27,24.7813959]
[1642043725964,9.5,148.35,148.27,24.7813959]
[1642043726164,10.1141,148.36,148.28,18.8094]
[1642043727166,10.1141,148.36,148.28,12.8094]
[1642043727764,10.3641,148.36,148.28,12.8094]
[1642043728164,19.8641,148.36,148.28,12.8094]
[1642043728566,19.6141,148.36,148.28,12.8094]
[1642043728765,19.6141,148.36,148.28,13.0594]
[1642043728766,9.5,148.36,148.28,13.0594]
[1642043728965,9.5,148.36,148.29,0.26]
[1642043729165,9.5,148.36,148.31,10.1113]
[1642043729368,9.5,148.4,148.31,10.1113]
[1642043729565,8.696,148.39,148.31,10.1113]
[1642043729767,2.696,148.39,148.31,10.1113]
[1642043729969,2.946,148.39,148.31,10.1113]
[1642043730467,6.0,148.38,148.3,91.1326]
[1642043730665,6.25,148.38,148.3,91.1326]
[1642043732167,16.3623,148.38,148.3,91.1326]
[1642043732970,10.3623,148.38,148.3,91.1326]
[1642043733568,6.0,148.37,148.3,91.1326]
[1642043733769,2.696,148.39,148.3,158.0626]
[1642043733968,2.696,148.39,148.3,91.1326]
[1642043734570,2.696,148.39,148.31,6.0]
[1642043734871,19.61,148.42,148.34,10.1094]
[1642043735071,6.0,148.41,148.34,10.1094]
[1642043735471,6.0,148.41,148.32,26.8401]
[1642043735671,6.0,148.41,148.32,27.0901]
[1642043735873,16.1102,148.41,148.32,26.8401]
[1642043736073,9.5,148.4,148.32,26.8401]
[1642043736273,12.196,148.4,148.32,26.8401]
[1642043737075,12.446,148.4,148.32,26.8401]
[1642043737273,10.1129,148.37,148.32,26.8401]
[1642043737475,12.446,148.4,148.32,26.8401]
[1642043737676,12.446,148.4,148.31,2.696]
[1642043737878,1.68287441,148.39,148.31,2.696]
[1642043738074,12.196,148.38,148.31,2.696]
[1642043738273,12.446,148.38,148.28,93.2]
[1642043738474,12.196,148.38,148.29,26.04670148]
[1642043738674,9.5,148.38,148.29,26.04670148]
[1642043739173,9.5,148.38,148.29,50.59040148]
[1642043739375,9.5,148.38,148.29,50.91040148]
[1642043739674,9.5,148.38,148.31,10.111]
[1642043739875,9.5,148.38,148.32,2.696]
[1642043740074,9.5,148.38,148.31,2.766]
[1642043740276,9.5,148.38,148.31,3.016]
[1642043740476,9.5,148.42,148.32,0.26]
[1642043740675,13.32017065,148.46,148.35,10.1087]
[1642043740876,3.82017065,148.46,148.37,27.13242168]
[1642043741075,3.82017065,148.46,148.38,2.695]
[1642043741275,13.32017065,148.49,148.38,3.275]
[1642043741476,13.32017065,148.49,148.39,66.93]
[1642043741680,3.82017065,148.49,148.4,2.694]
[1642043741877,3.82017065,148.49,148.41,10.1745]
[1642043742076,3.82017065,148.49,148.42,2.694]
[1642043742276,3.82017065,148.49,148.43,23.85655275]
[1642043742478,9.5,148.52,148.44,2.954]
[1642043742677,9.5,148.52,148.44,9.331]
[1642043742877,9.5,148.52,148.45,10.1003]
[1642043743377,6.0,148.51,148.44,2.694]
[1642043743577,4.37587441,148.51,148.43,23.85655275]
[1642043743780,9.5,148.52,148.44,10.1027]
[1642043744079,12.193,148.52,148.44,16.5317]
[1642043744280,12.193,148.52,148.45,2.693]
[1642043744678,12.193,148.52,148.46,0.26]
[1642043744880,9.5,148.57,148.49,66.0]
[1642043745181,16.61137065,148.59,148.5,27.60985898]
[1642043745381,13.91837065,148.59,148.5,27.60985898]
[1642043746081,10.0982,148.59,148.5,37.70845898]
[1642043746308,12.7908,148.58,148.5,37.70845898]
[1642043746481,22.2908,148.58,148.5,37.70845898]
[1642043746681,23.97367441,148.58,148.5,27.60985898]
[1642043746881,21.28167441,148.58,148.5,27.60985898]
[1642043747281,21.53167441,148.58,148.5,27.60985898]
[1642043747481,21.28167441,148.58,148.5,37.70845898]
[1642043747688,9.5,148.58,148.5,37.70845898]
[1642043748783,19.5983,148.58,148.5,37.70845898]
[1642043748984,19.5983,148.58,148.48,2.693]
[1642043749185,10.37587441,148.57,148.46,24.3815]
[1642043749384,9.5,148.56,148.46,24.3815]
[1642043749684,2.693,148.55,148.44,23.2499]
[1642043749885,9.5,148.54,148.45,28.09360821]
[1642043750284,10.1023,148.52,148.45,38.19540821]
[1642043750687,10.3523,148.52,148.45,38.19540821]
[1642043750885,10.3523,148.52,148.45,28.09360821]
[1642043751485,2.693,148.53,148.45,28.09360821]
[1642043751685,19.6014,148.54,148.45,28.34360821]
[1642043751885,19.8514,148.54,148.45,28.34360821]
[1642043752286,19.8514,148.54,148.45,0.25]
[1642043752684,19.8514,148.54,148.44,23.4999]
[1642043752887,19.8514,148.54,148.45,10.1018]
[1642043753085,2.693,148.53,148.44,23.2499]
[1642043753388,10.1048,148.49,148.43,2.693]
[1642043753819,10.3548,148.49,148.42,23.6946]
[1642043753986,21.53767441,148.49,148.41,2.694]
[1642043754186,21.53767441,148.49,148.35,33.6859]
[1642043754187,2.694,148.48,148.35,109.0002]
[1642043754386,10.1066,148.46,148.35,109.0002]
[1642043754587,2.944,148.48,148.35,109.0002]
[1642043754787,2.944,148.48,148.35,75.3143]